[Event "EYCC Girls-U14 2019"]
[Site "Bratislava"]
[Date "2019.08.06"]
[Round "5.6"]
[White "Obrochta, Lena"]
[Black "Roebers, Eline"]
[Result "1/2-1/2"]
[ECO "B46"]
[WhiteElo "1598"]
[BlackElo "2069"]
[Annotator "NA"]
[PlyCount "111"]
[EventDate "2019.08.02"]
[EventType "swiss"]
[EventCountry "SVK"]
[SourceTitle "playchess.com"]
[Source "ChessBase"]
[SourceQuality "1"]
[TimeControl "40/5400+30:1800+30"]

1. e4 {[%emt 0:00:00]} c5 {[%emt 0:00:00]} 2. Nf3 {[%emt 0:00:00]} e6 {[%emt 0:00:00]} 3. d4 {[%emt 0:00:14]} cxd4 {[%emt 0:00:34]} 4. Nxd4 {[%emt 0:00:10]} Nc6 {[%emt 0:00:41]} 5. Nc3 {[%emt 0:00:34]} a6 {[%emt 0:00:56]} 6. Be3 {[%emt 0:01:37]} Nf6 {[%emt 0:01:07]} 7. Bd3 {[%emt 0:01:21]} d5 {[%emt 0:05:14]} 8. exd5 {[%emt 0:06:47]} exd5 {[%emt 0:00:49]} 9. O-O {[%emt 0:01:13]} Bd6 {[%emt 0:02:13]} 10. h3 {[%emt 0:12:18]} O-O {[%emt 0:01:49]} 11. Nce2 {[%emt 0:04:34]} Qc7 {[%emt 0:04:44]} 12. c3 {[%emt 0:01:23]} Bd7 {[%emt 0:04:42]} 13. Rc1 {[%emt 0:06:53]} Rfe8 {[%emt 0:07:22]} 14. Bb1 {[%emt 0:07:01]} Ne5 {[%emt 0:06:35]} 15. b3 {[%emt 0:12:56]} Rac8 {[%emt 0:13:13]} 16. Ng3 {[%emt 0:08:43]} Ng6 {[%emt 0:10:39]} 17. Ngf5 {[%emt 0:05:05]} Be5 {[%emt 0:06:35]} 18. h4 {[%emt 0:05:45]} h5 {[%emt 0:07:02]} 19. f3 {[%emt 0:04:13]} Bxf5 {[%emt 0:08:14]} 20. Bxf5 {[%emt 0:01:49]} Rcd8 {[%emt 0:01:10]} 21. Bg5 {[%emt 0:03:02]} Bf4 {[%emt 0:02:47]} 22. Rc2 {[%emt 0:07:56]} Bxg5 {[%emt 0:09:18]} 23. hxg5 {[%emt 0:00:10]} Nd7 {[%emt 0:01:04]} 24. f4 {[%emt 0:02:24]} Nxf4 {[%emt 0:01:49]} 25. Rcf2 {[%emt 0:00:12]} Ng6 {[%emt 0:01:53]} 26. Qxh5 {[%emt 0:01:10]} Nde5 {[%emt 0:01:09]} 27. Nf3 {[%emt 0:01:06]} Qb6 {[%emt 0:01:10]} 28. Kh1 {[%emt 0:02:00]} Qe3 {[%emt 0:00:36]} 29. Nxe5 {[%emt 0:00:36]} Qxe5 {[%emt 0:00:26]} 30. Rf3 {[%emt 0:00:23]} Nf8 {[%emt 0:00:28]} 31. Bh7+ {[%emt 0:01:56]} Nxh7 {[%emt 0:00:09]} 32. Qxf7+ {[%emt 0:00:04]} Kh8 {[%emt 0:00:10]} 33. g6 {[%emt 0:00:08]} Qe6 {[%emt 0:01:16]} 34. Rh3 {[%emt 0:00:46]} Qxf7 {[%emt 0:00:13]} 35. Rxh7+ {[%emt 0:00:05]} Kg8 {[%emt 0:00:03]} 36. Rxf7 {[%emt 0:00:05]} b5 {[%emt 0:01:06]} 37. Rfxg7+ {[%emt 0:00:48]} Kf8 {[%emt 0:00:05]} 38. Ra7 {[%emt 0:00:35]} Kg8 {[%emt 0:00:16]} 39. Rxa6 {[%emt 0:00:11]} b4 {[%emt 0:00:28]} 40. Rc6 {[%emt 0:00:00]} bxc3 {[%emt 0:00:00]} 41. Rxc3 {[%emt 0:01:57]} d4 {[%emt 0:11:28]} 42. Rd3 {[%emt 0:01:58]} Re3 {[%emt 0:02:42]} 43. Rh3 {[%emt 0:04:00]} Rxd3 {[%emt 0:00:45]} 44. Rxd3 {[%emt 0:00:15]} Kg7 {[%emt 0:00:05]} 45. Kg1 {[%emt 0:05:42]} Kxg6 {[%emt 0:00:03]} 46. Kf2 {[%emt 0:00:13]} Kf5 {[%emt 0:00:09]} 47. Ke2 {[%emt 0:02:33]} Rg8 {[%emt 0:02:51]} 48. Rf3+ {[%emt 0:01:52]} Ke4 {[%emt 0:00:39]} 49. g3 {[%emt 0:02:00]} Rc8 {[%emt 0:08:13]} 50. Rf4+ {[%emt 0:01:58]} Ke5 {[%emt 0:00:30]} 51. Kd2 {[%emt 0:00:32]} Rg8 {[%emt 0:01:31]} 52. Rf3 {[%emt 0:01:07]} Ke4 {[%emt 0:00:07]} 53. Rd3 {[%emt 0:05:47]} Rh8 {[%emt 0:00:21]} 54. Kc2 {[%emt 0:01:05]} Rc8+ {[%emt 0:00:20]} 55. Kd2 {[%emt 0:00:14]} Rh8 {[%emt 0:00:03]} 56. Kc2 {[%emt 0:01:25]} 1/2-1/2

[Event "EYCC Girls-U14 2019"]
[Site "Bratislava"]
[Date "2019.08.06"]
[Round "5.7"]
[White "Sovina, Maria"]
[Black "Lhotska, Anna"]
[Result "0-1"]
[ECO "E39"]
[WhiteElo "1757"]
[BlackElo "1922"]
[Annotator "NA"]
[PlyCount "78"]
[EventDate "2019.08.02"]
[EventType "swiss"]
[EventCountry "SVK"]
[SourceTitle "playchess.com"]
[Source "ChessBase"]
[SourceQuality "1"]
[TimeControl "40/5400+30:1800+30"]

1. d4 {[%emt 0:00:00]} Nf6 {[%emt 0:00:00]} 2. c4 {[%emt 0:00:00]} e6 {[%emt 0:00:00]} 3. Nc3 {[%emt 0:00:00]} Bb4 {[%emt 0:00:00]} 4. Qc2 {[%emt 0:00:00]} c5 {[%emt 0:00:38]} 5. dxc5 {[%emt 0:00:04]} O-O {[%emt 0:00:42]} 6. a3 {[%emt 0:08:05]} Bxc5 {[%emt 0:00:24]} 7. Nf3 {[%emt 0:00:55]} b6 {[%emt 0:01:32]} 8. b4 {[%emt 0:07:48]} Be7 {[%emt 0:01:13]} 9. e3 {[%emt 0:09:19]} Bb7 {[%emt 0:06:12]} 10. Be2 {[%emt 0:01:00]} Nc6 {[%emt 0:06:20]} 11. O-O {[%emt 0:01:57]} Rc8 {[%emt 0:02:31]} 12. Bb2 {[%emt 0:03:47]} Qc7 {[%emt 0:05:26]} 13. Qb3 {[%emt 0:04:09]} Qb8 {[%emt 0:03:11]} 14. Rac1 {[%emt 0:05:01]} d6 {[%emt 0:13:34]} 15. Rfd1 {[%emt 0:07:02]} Nd7 {[%emt 0:04:08]} 16. Na4 {[%emt 0:05:41]} Rc7 {[%emt 0:11:16]} 17. Nd4 {[%emt 0:05:15]} Nce5 {[%emt 0:07:06]} 18. f4 {[%emt 0:06:23]} Ng6 {[%emt 0:02:08]} 19. f5 {[%emt 0:08:17]} exf5 {[%emt 0:04:49]} 20. Nxf5 {[%emt 0:00:19]} Nde5 {[%emt 0:02:24]} 21. Nxe7+ {[%emt 0:04:35]} Rxe7 {[%emt 0:00:30]} 22. c5 {[%emt 0:00:30]} dxc5 {[%emt 0:01:12]} 23. bxc5 {[%emt 0:00:05]} Nh4 {[%emt 0:03:38]} 24. Bxe5 {[%emt 0:06:28]} Qxe5 {[%emt 0:01:38]} 25. c6 {[%emt 0:00:06]} Qe4 {[%emt 0:01:08]} 26. Bf1 {[%emt 0:03:18]} Bxc6 {[%emt 0:12:41]} 27. Rd4 {[%emt 0:06:10]} Nf3+ {[%emt 0:00:55]} 28. gxf3 {[%emt 0:00:25]} Qxf3 {[%emt 0:00:06]} 29. Rf4 {[%emt 0:04:06]} Qh1+ {[%emt 0:00:39]} 30. Kf2 {[%emt 0:00:01]} Qxh2+ {[%emt 0:00:13]} 31. Ke1 {[%emt 0:00:04]} Qg3+ {[%emt 0:00:11]} 32. Ke2 {[%emt 0:00:04]} Qxf4 {[%emt 0:00:53]} 33. Rxc6 {[%emt 0:00:08]} Qh2+ {[%emt 0:01:11]} 34. Ke1 {[%emt 0:00:23]} Rd8 {[%emt 0:00:53]} 35. Rc2 {[%emt 0:01:05]} Qg3+ {[%emt 0:01:56]} 36. Ke2 {[%emt 0:00:08]} Qg4+ {[%emt 0:00:21]} 37. Kf2 {[%emt 0:00:54]} Re6 {[%emt 0:00:39]} 38. Rc4 {[%emt 0:00:56]} Rf6+ {[%emt 0:02:24]} 39. Ke1 {[%emt 0:00:50]} Qg3+ {[%emt 0:00:11]} 0-1

[Event "EYCC Girls-U14 2019"]
[Site "Bratislava"]
[Date "2019.08.06"]
[Round "5.8"]
[White "Toth, Nikoletta"]
[Black "Pipiras, Filipa Fortuna"]
[Result "1/2-1/2"]
[ECO "A06"]
[WhiteElo "2023"]
[BlackElo "1980"]
[Annotator "NA"]
[PlyCount "101"]
[EventDate "2019.08.02"]
[EventType "swiss"]
[EventCountry "SVK"]
[SourceTitle "playchess.com"]
[Source "ChessBase"]
[SourceQuality "1"]
[TimeControl "40/5400+30:1800+30"]

1. Nf3 {[%emt 0:00:00]} d5 {[%emt 0:00:01]} 2. g3 {[%emt 0:00:00]} Nf6 {[%emt 0:01:09]} 3. Bg2 {[%emt 0:00:00]} e6 {[%emt 0:01:46]} 4. O-O {[%emt 0:00:00]} Be7 {[%emt 0:00:15]} 5. c4 {[%emt 0:00:13]} O-O {[%emt 0:00:37]} 6. b3 {[%emt 0:00:04]} c5 {[%emt 0:00:36]} 7. Bb2 {[%emt 0:00:06]} Nc6 {[%emt 0:00:44]} 8. cxd5 {[%emt 0:00:55]} exd5 {[%emt 0:01:38]} 9. d4 {[%emt 0:00:13]} b6 {[%emt 0:08:13]} 10. Nc3 {[%emt 0:07:05]} Bb7 {[%emt 0:00:55]} 11. Na4 {[%emt 0:04:23]} Ne4 {[%emt 0:04:27]} 12. dxc5 {[%emt 0:02:44]} bxc5 {[%emt 0:00:49]} 13. Rc1 {[%emt 0:00:36]} Rc8 {[%emt 0:09:53]} 14. Nd2 {[%emt 0:09:13]} Na5 {[%emt 0:14:57]} 15. Nxe4 {[%emt 0:02:43]} dxe4 {[%emt 0:00:09]} 16. Qxd8 {[%emt 0:00:56]} Rfxd8 {[%emt 0:00:28]} 17. Bc3 {[%emt 0:00:17]} Nc6 {[%emt 0:01:19]} 18. Bxe4 {[%emt 0:00:55]} Ba6 {[%emt 0:01:17]} 19. Rc2 {[%emt 0:12:15]} Nd4 {[%emt 0:03:17]} 20. Bxd4 {[%emt 0:00:46]} cxd4 {[%emt 0:01:29]} 21. Rfc1 {[%emt 0:01:51]} Ba3 {[%emt 0:01:50]} 22. Rxc8 {[%emt 0:06:15]} Rxc8 {[%emt 0:00:12]} 23. Rd1 {[%emt 0:06:14]} Bxe2 {[%emt 0:03:30]} 24. Rxd4 {[%emt 0:00:05]} Bb5 {[%emt 0:01:32]} 25. Kg2 {[%emt 0:05:24]} g6 {[%emt 0:07:16]} 26. Bd3 {[%emt 0:18:25]} Bxd3 {[%emt 0:13:41]} 27. Rxd3 {[%emt 0:00:08]} Rc2 {[%emt 0:00:08]} 28. Nc3 {[%emt 0:03:10]} Bb4 {[%emt 0:00:26]} 29. Nd5 {[%emt 0:00:46]} Bc5 {[%emt 0:00:36]} 30. Nf6+ {[%emt 0:01:21]} Kg7 {[%emt 0:02:37]} 31. Ne4 {[%emt 0:01:18]} Bb4 {[%emt 0:00:40]} 32. a4 {[%emt 0:01:44]} Rb2 {[%emt 0:02:00]} 33. Rf3 {[%emt 0:07:57]} h6 {[%emt 0:02:19]} 34. Nf6 {[%emt 0:02:54]} Rd2 {[%emt 0:01:04]} 35. Ng4 {[%emt 0:01:23]} Bd6 {[%emt 0:02:36]} 36. Ne3 {[%emt 0:00:20]} Bc5 {[%emt 0:01:18]} 37. Nc4 {[%emt 0:00:43]} Re2 {[%emt 0:00:23]} 38. Kf1 {[%emt 0:01:45]} Re6 {[%emt 0:00:54]} 39. Rd3 {[%emt 0:02:26]} Re7 {[%emt 0:00:45]} 40. Ne3 {[%emt 0:00:00]} Rb7 {[%emt 0:00:00]} 41. Ke2 {[%emt 0:06:51]} Kf6 {[%emt 0:03:49]} 42. f4 {[%emt 0:01:03]} Ke6 {[%emt 0:03:26]} 43. Kf3 {[%emt 0:01:33]} h5 {[%emt 0:01:59]} 44. Nc4 {[%emt 0:02:55]} f6 {[%emt 0:02:12]} 45. h3 {[%emt 0:00:48]} Rb8 {[%emt 0:01:50]} 46. Ke4 {[%emt 0:01:39]} Rb7 {[%emt 0:02:49]} 47. Kf3 {[%emt 0:05:22]} Rb8 {[%emt 0:00:39]} 48. Nd2 {[%emt 0:00:53]} Rb7 {[%emt 0:07:46]} 49. Ke2 {[%emt 0:07:26]} Rb8 {[%emt 0:01:24]} 50. Nc4 {[%emt 0:00:12]} Rb7 {[%emt 0:01:44]} 51. Kf3 {[%emt 0:02:31] Ke5 Ke4+} 1/2-1/2

[Event "EYCC Girls-U14 2019"]
[Site "Bratislava"]
[Date "2019.08.06"]
[Round "5.9"]
[White "Kasaeva, Sofiia"]
[Black "Zhou, Lulu"]
[Result "1/2-1/2"]
[ECO "C95"]
[WhiteElo "1897"]
[BlackElo "1944"]
[Annotator "NA"]
[PlyCount "81"]
[EventDate "2019.08.02"]
[EventType "swiss"]
[EventCountry "SVK"]
[SourceTitle "playchess.com"]
[Source "ChessBase"]
[SourceQuality "1"]
[TimeControl "40/5400+30:1800+30"]

1. e4 {[%emt 0:00:00]} e5 {[%emt 0:00:00]} 2. Nf3 {[%emt 0:00:00]} Nc6 {[%emt 0:00:00]} 3. Bb5 {[%emt 0:00:00]} a6 {[%emt 0:00:00]} 4. Ba4 {[%emt 0:00:00]} Nf6 {[%emt 0:00:00]} 5. O-O {[%emt 0:00:00]} Be7 {[%emt 0:00:00]} 6. Re1 {[%emt 0:00:00]} b5 {[%emt 0:00:00]} 7. Bb3 {[%emt 0:00:01]} d6 {[%emt 0:00:00]} 8. c3 {[%emt 0:00:13]} O-O {[%emt 0:00:06]} 9. h3 {[%emt 0:00:06]} Nb8 {[%emt 0:01:26]} 10. d4 {[%emt 0:01:27]} Nbd7 {[%emt 0:00:06]} 11. Nbd2 {[%emt 0:02:02]} Bb7 {[%emt 0:00:05]} 12. Bc2 {[%emt 0:00:22]} Re8 {[%emt 0:01:21]} 13. Nf1 {[%emt 0:05:47]} Bf8 {[%emt 0:00:06]} 14. Ng3 {[%emt 0:01:28]} g6 {[%emt 0:00:08]} 15. Nh2 {[%emt 0:08:10]} c5 {[%emt 0:02:07]} 16. d5 {[%emt 0:01:18]} c4 {[%emt 0:00:29]} 17. Bg5 {[%emt 0:02:04]} h6 {[%emt 0:07:05]} 18. Be3 {[%emt 0:00:46]} Nc5 {[%emt 0:01:42]} 19. Qd2 {[%emt 0:03:55]} Kh7 {[%emt 0:04:13]} 20. Bxc5 {[%emt 0:03:09]} dxc5 {[%emt 0:00:05]} 21. f4 {[%emt 0:06:06]} Bd6 {[%emt 0:21:02]} 22. f5 {[%emt 0:01:26]} g5 {[%emt 0:06:03]} 23. Qe2 {[%emt 0:01:45]} Rg8 {[%emt 0:05:14]} 24. Nh5 {[%emt 0:08:39]} Nxh5 {[%emt 0:02:26]} 25. Qxh5 {[%emt 0:00:08]} f6 {[%emt 0:03:00]} 26. Ng4 {[%emt 0:03:20]} Qf8 {[%emt 0:00:10]} 27. Re3 {[%emt 0:03:10]} Qg7 {[%emt 0:03:59]} 28. Kf2 {[%emt 0:16:17]} Bc8 {[%emt 0:13:31]} 29. Rf3 {[%emt 0:18:57]} Be7 {[%emt 0:03:13]} 30. Ne3 {[%emt 0:08:01]} Bd7 {[%emt 0:00:48]} 31. Rg3 {[%emt 0:00:33]} Be8 {[%emt 0:01:19]} 32. Qe2 {[%emt 0:00:25]} h5 {[%emt 0:01:58]} 33. Rf3 {[%emt 0:01:32]} Bd6 {[%emt 0:11:40]} 34. g3 {[%emt 0:03:01]} Rh8 {[%emt 0:04:55]} 35. Kg2 {[%emt 0:00:13]} Kg8 {[%emt 0:00:04]} 36. Rff1 {[%emt 0:00:41]} Qb7 {[%emt 0:04:41]} 37. Rh1 {[%emt 0:00:46]} Rd8 {[%emt 0:00:25]} 38. Rae1 {[%emt 0:01:31]} Rd7 {[%emt 0:00:12]} 39. Qd1 {[%emt 0:00:40]} Rdh7 {[%emt 0:00:23]} 40. Ref1 {[%emt 0:00:00]} Kf8 {[%emt 0:00:00]} 41. Qe2 {[%emt 0:04:13]} 1/2-1/2

[Event "EYCC Girls-U14 2019"]
[Site "Bratislava"]
[Date "2019.08.06"]
[Round "5.10"]
[White "Toncheva, Nadya"]
[Black "Lomaia, Diana"]
[Result "1-0"]
[ECO "D20"]
[WhiteElo "2087"]
[BlackElo "1807"]
[Annotator "NA"]
[PlyCount "71"]
[EventDate "2019.08.02"]
[EventType "swiss"]
[EventCountry "SVK"]
[SourceTitle "playchess.com"]
[Source "ChessBase"]
[SourceQuality "1"]
[TimeControl "40/5400+30:1800+30"]

1. d4 {[%emt 0:00:00]} d5 {[%emt 0:00:00]} 2. c4 {[%emt 0:00:00]} dxc4 {[%emt 0:00:08]} 3. e3 {[%emt 0:00:00]} c5 {[%emt 0:00:41]} 4. Bxc4 {[%emt 0:00:00]} cxd4 {[%emt 0:02:34]} 5. exd4 {[%emt 0:00:00]} Nf6 {[%emt 0:01:26]} 6. Nf3 {[%emt 0:00:00]} e6 {[%emt 0:00:11]} 7. O-O {[%emt 0:00:00]} Be7 {[%emt 0:00:11]} 8. Nc3 {[%emt 0:00:00]} O-O {[%emt 0:00:31]} 9. Re1 {[%emt 0:00:00]} Nc6 {[%emt 0:00:32]} 10. a3 {[%emt 0:00:00]} b6 {[%emt 0:00:30]} 11. Bf4 {[%emt 0:00:16]} Bb7 {[%emt 0:01:30]} 12. Ba2 {[%emt 0:00:03]} Rc8 {[%emt 0:01:48]} 13. Qd3 {[%emt 0:00:03]} Na5 {[%emt 0:11:18]} 14. Ne5 {[%emt 0:01:56]} Nd5 {[%emt 0:02:21]} 15. Bd2 {[%emt 0:02:38]} Nxc3 {[%emt 0:09:48]} 16. bxc3 {[%emt 0:00:28]} Bf6 {[%emt 0:01:05]} 17. Rac1 {[%emt 0:11:24]} Nc6 {[%emt 0:11:08]} 18. f4 {[%emt 0:05:55]} Qd6 {[%emt 0:06:01]} 19. Ng4 {[%emt 0:06:46]} Bh4 {[%emt 0:05:07]} 20. Re3 {[%emt 0:03:54]} Qxf4 {[%emt 0:12:21]} 21. Rg3 {[%emt 0:00:34]} Qd6 {[%emt 0:04:59]} 22. Rh3 {[%emt 0:00:27]} f5 {[%emt 0:10:55]} 23. Rxh4 {[%emt 0:00:55]} Qe7 {[%emt 0:01:19]} 24. g3 {[%emt 0:05:03]} g5 {[%emt 0:06:36]} 25. Rh6 {[%emt 0:01:02]} Nd8 {[%emt 0:02:17]} 26. Ne5 {[%emt 0:01:18]} Be4 {[%emt 0:01:15]} 27. Qe3 {[%emt 0:00:27]} g4 {[%emt 0:02:07]} 28. Qg5+ {[%emt 0:01:48]} Qxg5 {[%emt 0:00:35]} 29. Bxg5 {[%emt 0:00:05]} Bd5 {[%emt 0:01:10]} 30. Bxd5 {[%emt 0:00:30]} exd5 {[%emt 0:00:02]} 31. Rd6 {[%emt 0:00:15]} Nf7 {[%emt 0:01:01]} 32. Nxf7 {[%emt 0:00:15]} Rxf7 {[%emt 0:00:20]} 33. Rxd5 {[%emt 0:00:07]} Rc4 {[%emt 0:01:27]} 34. Bh6 {[%emt 0:00:34]} Rfc7 {[%emt 0:00:58]} 35. Rxf5 {[%emt 0:00:11]} Rc8 {[%emt 0:00:12]} 36. Rcf1 {[%emt 0:00:05]} 1-0

[Event "EYCC Girls-U14 2019"]
[Site "Bratislava"]
[Date "2019.08.06"]
[Round "5.11"]
[White "Lorente Serrano, Rosa Adela"]
[Black "Mironenko, Galina"]
[Result "0-1"]
[ECO "A04"]
[WhiteElo "1788"]
[BlackElo "1995"]
[Annotator "NA"]
[PlyCount "58"]
[EventDate "2019.08.02"]
[EventType "swiss"]
[EventCountry "SVK"]
[SourceTitle "playchess.com"]
[Source "ChessBase"]
[SourceQuality "1"]
[TimeControl "40/5400+30:1800+30"]

1. Nf3 {[%emt 0:00:00]} c5 {[%emt 0:00:00]} 2. g3 {[%emt 0:00:12]} g6 {[%emt 0:00:00]} 3. Bg2 {[%emt 0:01:01]} Nc6 {[%emt 0:00:05]} 4. O-O {[%emt 0:01:32]} Bg7 {[%emt 0:00:08]} 5. d3 {[%emt 0:01:51]} e5 {[%emt 0:00:28]} 6. e4 {[%emt 0:04:57]} Nge7 {[%emt 0:01:47]} 7. Be3 {[%emt 0:03:34]} d6 {[%emt 0:01:18]} 8. c3 {[%emt 0:00:36]} O-O {[%emt 0:04:07]} 9. a4 {[%emt 0:02:33]} f5 {[%emt 0:06:24]} 10. Qb3+ {[%emt 0:06:46]} Kh8 {[%emt 0:00:53]} 11. Ng5 {[%emt 0:01:26]} f4 {[%emt 0:04:51]} 12. Bd2 {[%emt 0:03:15]} Qe8 {[%emt 0:01:30]} 13. Na3 {[%emt 0:01:11]} h6 {[%emt 0:05:06]} 14. Nf3 {[%emt 0:01:15]} g5 {[%emt 0:05:29]} 15. Nb5 {[%emt 0:06:58]} Qd8 {[%emt 0:03:31]} 16. h3 {[%emt 0:07:10]} g4 {[%emt 0:12:52]} 17. hxg4 {[%emt 0:04:29]} Bxg4 {[%emt 0:01:52]} 18. Na3 {[%emt 0:16:26]} Qe8 {[%emt 0:10:46]} 19. Nh4 {[%emt 0:12:07]} Qh5 {[%emt 0:11:29]} 20. Rae1 {[%emt 0:02:06]} f3 {[%emt 0:01:59]} 21. Bh1 {[%emt 0:00:35]} Bf6 {[%emt 0:02:04]} 22. Nxf3 {[%emt 0:04:13]} Bxf3 {[%emt 0:02:09]} 23. Bxf3 {[%emt 0:00:07]} Qxf3 {[%emt 0:00:33]} 24. Qe6 {[%emt 0:00:06]} Bg7 {[%emt 0:05:53]} 25. Qxd6 {[%emt 0:01:39]} b6 {[%emt 0:02:13]} 26. Bxh6 {[%emt 0:04:24]} Rf6 {[%emt 0:00:43]} 27. Bxg7+ {[%emt 0:00:09]} Kxg7 {[%emt 0:00:12]} 28. Re3 {[%emt 0:00:06]} Qh5 {[%emt 0:01:12]} 29. g4 {[%emt 0:01:27]} Qh4 {[%emt 0:00:32]} 0-1

[Event "EYCC Girls-U14 2019"]
[Site "Bratislava"]
[Date "2019.08.06"]
[Round "5.12"]
[White "Bashylina, Luisa"]
[Black "Barwinska, Ewa"]
[Result "1-0"]
[ECO "B42"]
[WhiteElo "1989"]
[BlackElo "1758"]
[Annotator "NA"]
[PlyCount "59"]
[EventDate "2019.08.02"]
[EventType "swiss"]
[EventCountry "SVK"]
[SourceTitle "playchess.com"]
[Source "ChessBase"]
[SourceQuality "1"]
[TimeControl "40/5400+30:1800+30"]

1. e4 {[%emt 0:00:00]} c5 {[%emt 0:00:00]} 2. Nf3 {[%emt 0:00:00]} e6 {[%emt 0:00:00]} 3. d4 {[%emt 0:00:48]} cxd4 {[%emt 0:00:05]} 4. Nxd4 {[%emt 0:00:11]} a6 {[%emt 0:00:20]} 5. Bd3 {[%emt 0:00:41]} Qc7 {[%emt 0:00:35]} 6. O-O {[%emt 0:00:11]} Nf6 {[%emt 0:00:33]} 7. Qe2 {[%emt 0:00:49]} d6 {[%emt 0:02:33]} 8. Kh1 {[%emt 0:01:49]} Be7 {[%emt 0:02:02]} 9. f4 {[%emt 0:00:35]} Nbd7 {[%emt 0:01:56]} 10. a4 {[%emt 0:02:11]} b6 {[%emt 0:01:49]} 11. Nc3 {[%emt 0:02:56]} Bb7 {[%emt 0:00:54]} 12. Bd2 {[%emt 0:02:25]} h5 {[%emt 0:05:44]} 13. Rae1 {[%emt 0:04:04]} h4 {[%emt 0:02:55]} 14. Nd5 {[%emt 0:08:52]} exd5 {[%emt 0:06:40]} 15. exd5 {[%emt 0:00:23]} O-O {[%emt 0:02:09]} 16. Nf5 {[%emt 0:04:24]} Bd8 {[%emt 0:02:47]} 17. c4 {[%emt 0:06:09]} Nc5 {[%emt 0:06:49]} 18. Bc2 {[%emt 0:01:52]} b5 {[%emt 0:08:54]} 19. Bc3 {[%emt 0:09:26]} g6 {[%emt 0:21:48]} 20. Nh6+ {[%emt 0:25:26]} Kg7 {[%emt 0:05:36]} 21. Ng4 {[%emt 0:01:26]} Nxa4 {[%emt 0:06:08]} 22. Bxa4 {[%emt 0:01:38]} bxa4 {[%emt 0:02:46]} 23. f5 {[%emt 0:00:48]} Bc8 {[%emt 0:05:28]} 24. Qd2 {[%emt 0:03:10]} Rh8 {[%emt 0:01:19]} 25. Qg5 {[%emt 0:01:39]} Rh5 {[%emt 0:01:44]} 26. Bxf6+ {[%emt 0:00:10]} Kf8 {[%emt 0:00:57]} 27. Qe3 {[%emt 0:02:50]} Bxf6 {[%emt 0:02:05]} 28. Nxf6 {[%emt 0:00:16]} Rh8 {[%emt 0:01:43]} 29. fxg6 {[%emt 0:00:20]} h3 {[%emt 0:00:41]} 30. g7+ {[%emt 0:00:22]} 1-0

[Event "EYCC Girls-U14 2019"]
[Site "Bratislava"]
[Date "2019.08.06"]
[Round "5.13"]
[White "Cornileau, Juliette"]
[Black "Sumarriva Paulin, Laura"]
[Result "1/2-1/2"]
[ECO "C00"]
[WhiteElo "1805"]
[BlackElo "1861"]
[Annotator "NA"]
[PlyCount "60"]
[EventDate "2019.08.02"]
[EventType "swiss"]
[EventCountry "SVK"]
[SourceTitle "playchess.com"]
[Source "ChessBase"]
[SourceQuality "1"]
[TimeControl "40/5400+30:1800+30"]

1. e4 {[%emt 0:00:00]} e6 {[%emt 0:00:00]} 2. d4 {[%emt 0:00:00]} d5 {[%emt 0:00:00]} 3. Bd3 {[%emt 0:00:00]} c5 {[%emt 0:00:28]} 4. exd5 {[%emt 0:00:39]} exd5 {[%emt 0:00:08]} 5. Nf3 {[%emt 0:01:26]} Nf6 {[%emt 0:03:54]} 6. O-O {[%emt 0:04:52]} Be7 {[%emt 0:00:48]} 7. Nbd2 {[%emt 0:05:12]} O-O {[%emt 0:00:39]} 8. dxc5 {[%emt 0:01:56]} Bxc5 9. Nb3 {[%emt 0:00:52]} Be7 {[%emt 0:02:10]} 10. c3 {[%emt 0:06:15]} Bg4 {[%emt 0:00:41]} 11. Be3 {[%emt 0:06:41]} Nc6 {[%emt 0:02:35]} 12. Be2 {[%emt 0:12:26]} Re8 {[%emt 0:18:01]} 13. Nbd4 {[%emt 0:10:10]} Qc7 {[%emt 0:07:07]} 14. Re1 {[%emt 0:05:45]} Rad8 {[%emt 0:07:12]} 15. Qc2 {[%emt 0:16:50]} Ne4 {[%emt 0:24:18]} 16. Rad1 {[%emt 0:03:22]} Bc5 {[%emt 0:02:46]} 17. Qc1 {[%emt 0:10:48]} h6 {[%emt 0:17:55]} 18. h3 {[%emt 0:02:03]} Bh5 {[%emt 0:00:35]} 19. Nf5 {[%emt 0:01:38]} Bxe3 {[%emt 0:06:05]} 20. Nxe3 {[%emt 0:00:12]} Qb6 {[%emt 0:00:19]} 21. Nd4 {[%emt 0:04:35]} Bxe2 {[%emt 0:02:26]} 22. Rxe2 {[%emt 0:00:26]} Qa6 {[%emt 0:01:16]} 23. Qc2 {[%emt 0:04:46]} Qxa2 {[%emt 0:01:24]} 24. Ree1 {[%emt 0:00:24]} Nxd4 {[%emt 0:00:36]} 25. Rxd4 {[%emt 0:00:27]} Qa5 {[%emt 0:00:32]} 26. Red1 {[%emt 0:00:31]} Nf6 {[%emt 0:00:23]} 27. Qb3 {[%emt 0:00:29]} Qa6 {[%emt 0:00:37]} 28. Nxd5 {[%emt 0:00:38]} Nxd5 {[%emt 0:00:07]} 29. Rxd5 {[%emt 0:00:06]} Rxd5 {[%emt 0:00:41]} 30. Qxd5 {[%emt 0:00:42]} Qe2 {[%emt 0:00:36]} 1/2-1/2